[Event "EICC 2025"]
[Site "Eforie-Nord"]
[Date "2025.03.15"]
[Round "1.6"]
[White "Anton Guijarro, David"]
[Black "Secheres, Adrian-Simion"]
[Result "1-0"]
[Annotator "TA"]
[ECO "E71"]
[WhiteElo "2663"]
[BlackElo "2340"]
[PlyCount "97"]
[EventDate "2025.03.14"]
[EventType "swiss"]
[EventCountry "ROU"]
[SourceTitle "playchess.com"]
[Source "ChessBase"]
[SourceQuality "1"]
[TimeControl "40/5400+30:1800+30"]

{[%evp 13,97,38,41,6,19,27,31,26,33,27,58,43,123,123,129,116,185,183,185,168,192,184,193,187,197,185,239,186,230,234,222,229,230,222,231,224,236,223,265,210,220,221,287,172,171,176,167,156,177,171,166,147,149,148,143,145,188,175,185,206,314,318,322,227,337,224,238,266,450,448,257,419,395,341,352,342,411,372,370,362,352,307,393,194,194,205]} 1. d4 {[%emt 0:00:13]} Nf6 {[%emt 0:00:27]} 2. c4 {[%emt 0:00:17]} g6 {[%emt 0:00:24]} 3. Nc3 {[%emt 0:00:29]} Bg7 {[%emt 0:00:27]} 4. e4 {[%emt 0:00:17]} d6 {[%emt 0:00:07]} 5. h3 {[%emt 0:00:40]} O-O {[%emt 0:01:41]} 6. Be3 {[%emt 0:00:29]} e5 {[%emt 0:03:05] 6...Nc6 is more advanced technology.} 7. d5 {[%emt 0:00:28]} Na6 {[%emt 0:00:28]} 8. g4 {[%emt 0:00:50][%cal Bg2g4,Bg4g5][%mdl 32] E71: King's Indian: 4 e4 d6 5 h3.} Nc5 {[%emt 0:00:38]} 9. f3 {[%emt 0:00:19]} a5 {[%emt 0:00:48]} 10. Qd2 {[%emt 0:00:44] White is slightly better.} c6 {[%emt 0:01:11]} 11. Nge2 {[%emt 0:00:54]} h5 {[%emt 0:08:59]} 12. g5 $146 {[%emt 0:09:17]} ({Predecessor:} 12. O-O-O a4 13. dxc6 Ne6 14. Qxd6 Qa5 15. cxb7 Bxb7 16. Qb6 Qxb6 17. Bxb6 Rfc8 18. Nd5 Bxd5 19. exd5 {0-1 Csonka,B (2495)-Firouzja,A (2785) Titled Tuesday intern op 25th Oct Early blitz 2022 (8)}) 12... Nh7 {[%emt 0:06:21]} (12... Nfd7 $14) 13. O-O-O $16 {[%emt 0:05:19]} Ra6 {[%emt 0:16:09]} 14. h4 {[%emt 0:05:28]} cxd5 {[%emt 0:04:47]} (14... f6 $16) 15. Nxd5 $18 {[%emt 0:06:00][%csl Od5] Strong Square White (d5)} Be6 {[%emt 0:05:53]} 16. Nec3 {[%emt 0:02:25]} Qd7 {[%emt 0:06:19]} 17. Bxc5 {[%emt 0:08:36]} dxc5 {[%emt 0:00:08]} 18. Qe3 {[%emt 0:56:45]} Kh8 {[%emt 0:04:41]} 19. Qxc5 {[%emt 0:00:00][%cal Od5b4]} Rc8 {[%emt 0:02:06]} (19... Qc8 {might work better.} 20. Qxc8 Rxc8) 20. Qb5 {[%emt 0:00:00]} Nf8 {[%emt 0:04:27]} 21. c5 {[%emt 0:00:00]} Rac6 {[%emt 0:09:14]} 22. Nb6 {[%emt 0:00:00] Excellent horsemanship.} (22. Qxa5 Rxc5 23. Qa3 Bxd5 $11) 22... Qc7 {[%emt 0:00:07][%cal Oc6c5]} 23. Nxc8 {[%emt 0:00:00]} (23. Qxa5 Nd7 $11) 23... Rxc5 {[%emt 0:00:26]} 24. Qd3 {[%emt 0:00:00]} Qxc8 {[%emt 0:02:33]} 25. Kb1 {[%emt 0:00:00]} Bd7 {[%emt 0:08:30]} 26. Nd5 {[%emt 0:00:00]} Be6 {[%emt 0:01:56][%cal Oc5d5] [#] White must now prevent ...Rxd5!.} 27. Qb3 {[%emt 0:00:00]} Nd7 {[%emt 0:04:02][%cal Bf8d7,Bd7b8,Bb8c6,Bc6d4][%mdl 32]} 28. a4 {[%emt 0:00:00]} (28. Bh3 $142 {Threatens to win with Bxe6.} Bxh3 29. Ne7 (29. Rxh3 a4 $18)) 28... Nb8 {[%emt 0:01:59]} 29. Qe3 {[%emt 0:00:00]} Bf8 {[%emt 0:01:33]} 30. Rc1 {[%emt 0:00:00]} Rxc1+ {[%emt 0:03:45]} 31. Qxc1 {[%emt 0:00:00]} Nc6 {[%emt 0:00:32]} 32. Bb5 {[%emt 0:00:00]} Bxd5 {[%emt 0:00:48]} 33. exd5 {[%emt 0:00:00]} Qf5+ {[%emt 0:00:04]} 34. Qc2 {[%emt 0:00:00]} Qxc2+ {[%emt 0:00:48]} 35. Kxc2 $16 {[%emt 0:00:00][%mdl 4096] Endgame KRB-KBN} Nd4+ {[%emt 0:00:35]} 36. Kd3 {[%emt 0:00:00]} Nxf3 {[%emt 0:00:27]} (36... Bc5 $142 37. Rf1 Bd6) 37. Ke4 $18 {[%emt 0:00:00]} Nd4 {[%emt 0:01:05]} 38. Rf1 {[%emt 0:07:10]} (38. Kxe5 Nf5 39. Bd3 Bg7+ 40. Kf4 Nd6 $18) 38... Kg7 {[%emt 0:00:52]} (38... Nf5 $142 39. Rxf5 (39. Kxe5 Bg7+ 40. Kf4 Bxb2 $18) 39... gxf5+ 40. Kxe5 Bg7+ 41. Kxf5 Kg8) 39. Kxe5 {[%emt 0:00:44]} Nf5 {[%emt 0:00:15]} 40. Rxf5 $1 {[%emt 0:00:40]} gxf5 {[%emt 0:00:06][%cal Bg6f5,Bf5f4][%mdl 32] KB-KB} 41. d6 {[%emt 0:32:18]} (41. Kxf5 Bd6 42. Be2 Bg3 43. Bxh5 Bxh4 $18) 41... f4 {[%emt 0:30:24]} 42. Be2 {[%emt 0:00:00]} (42. Kxf4 Bxd6+ 43. Kf3 Bb4 $14) 42... Kg6 {[%emt 0:00:00]} 43. Bd3+ {[%emt 0:00:00]} (43. Kxf4 Bxd6+ 44. Kf3 Be5 $11) 43... Kg7 {[%emt 0:00:00]} 44. Be4 {[%emt 0:00:00]} (44. Kxf4 Bxd6+ 45. Kf3 Bb4 $11) 44... b6 {[%emt 0:00:00]} 45. b3 {[%emt 0:00:00]} (45. Kxf4 Bxd6+ 46. Kf5 Bg3 $11) 45... Kg8 {[%emt 0:00:00]} 46. d7 {[%emt 0:00:00]} ({Worse is} 46. Kxf4 Bxd6+ 47. Kf5 Kg7 $11) 46... Be7 {[%emt 0:00:00]} 47. Bf3 {[%emt 0:00:00]} Kg7 {[%emt 0:00:00]} 48. Bxh5 {[%emt 0:00:00]} (48. Kf5 $142) 48... f6+ {[%emt 0:00:00]} 49. Kxf4 {[%emt 0:00:00] White took control after the opening.   Weighted Error Value: White=0.28 (precise) /Black=0.24 (precise)   Mistake:       	White=2     	Black=5      Inaccurate:     	White=1     	Black=2      OK:         	White=17    	Black=16     Best:        	White=4     	Black=3      Strong:       	White=1     	---} ({Weaker is} 49. Ke6 Bd8 50. gxf6+ Bxf6 $18) 1-0

[Event "EICC 2025"]
[Site "Eforie-Nord"]
[Date "2025.03.15"]
[Round "1.6"]
[White "Smietanska, Wiktoria"]
[Black "Kourkoulos-Arditis, Stamatis"]
[Result "0-1"]
[Annotator "TA"]
[ECO "D37"]
[WhiteElo "2254"]
[BlackElo "2580"]
[PlyCount "154"]
[EventDate "2025.03.14"]
[EventType "swiss"]
[EventCountry "ROU"]
[SourceTitle "playchess.com"]
[Source "ChessBase"]
[SourceQuality "1"]
[TimeControl "40/5400+30:1800+30"]

{[%evp 9,154,22,27,21,30,30,31,23,29,22,29,0,8,-41,-33,-38,-45,-31,-25,-21,-33,-50,-39,-50,-50,-56,-59,-52,0,-56,-69,-61,-34,-33,-25,-34,-20,-71,-76,-77,-76,-76,-83,-73,-79,-74,-68,-68,-68,-69,-76,-66,-61,-59,-56,-89,-39,-233,-236,-223,-229,-228,-225,-176,-137,-128,-96,-100,-82,-327,-315,-338,-333,-283,-96,-97,-109,-128,-120,-117,-86,-97,-106,-83,-41,-52,-43,-43,-41,-54,-37,-72,-8,-109,-101,-100,-29,-77,-75,-75,-44,-67,-67,-71,-71,-85,-37,-87,-75,-72,-79,-283,-273,-254,0,-60,0,-75,0,-94,-88,-90,-87,-90,-108,-85,-61,-114,-93,-271,-255,-203,-117,-192,-106,-313,-217,-1702,-3058,-3058,-2592,-1588,-1537,-29965,-29969,-29998,-29999]} 1. c4 {[%emt 0:00:03]} e6 {[%emt 0:00:25]} 2. Nc3 {[%emt 0:00:17]} d5 {[%emt 0:00:10]} 3. d4 {[%emt 0:00:21]} a6 {[%emt 0:00:58]} 4. cxd5 {[%emt 0:00:50]} exd5 {[%emt 0:00:04]} 5. Nf3 {[%emt 0:00:31]} Nf6 {[%emt 0:01:01]} 6. Bg5 {[%emt 0:01:17] D37: Queen's Gambit Declined: 5 Bf4.} Be6 {[%emt 0:00:15]} 7. e3 {[%emt 0:01:59]} Nbd7 {[%emt 0:00:23]} 8. Bd3 {[%emt 0:01:40] White is slightly better.} c6 {[%emt 0:00:23]} 9. O-O {[%emt 0:02:40]} Bd6 {[%emt 0:00:13] Prevents Ne5} 10. Qc2 {[%emt 0:01:54]} Qc7 {[%emt 0:02:20]} 11. e4 {[%emt 0:16:41]} (11. Bh4 $11) 11... dxe4 {[%emt 0:01:15]} 12. Nxe4 {[%emt 0:00:04]} Nxe4 {[%emt 0:02:40]} 13. Bxe4 {[%emt 0:00:03][%cal Oa1c1]} h6 {[%emt 0:00:15]} 14. Bd2 {[%emt 0:06:09]} O-O {[%emt 0:01:43]} 15. h3 {[%emt 0:02:21]} Nf6 {[%emt 0:02:50]} 16. Bd3 {[%emt 0:08:08]} Bd5 {[%emt 0:10:52]} 17. Nh4 {[%emt 0:03:49]} Rfe8 {[%emt 0:01:26]} 18. Nf5 {[%emt 0:04:14]} Bh2+ $146 {[%emt 0:09:14]} (18... Re6 19. Qc1 Be4 20. Bxe4 Nxe4 21. Nxd6 Qxd6 22. Rd1 Qxd4 23. Be3 Qf6 24. Rd7 Re7 {0-1 Fernandez,M (2229)-Quintiliano Pinto,R (2455) Caioba Telecom op 5th 2019 (3)}) 19. Kh1 {[%emt 0:00:05]} Bf4 {[%emt 0:00:13]} 20. Rfe1 {[%emt 0:08:43]} g6 {[%emt 0:25:00]} 21. Ne7+ {[%emt 0:09:45]} Kf8 {[%emt 0:07:57]} 22. Nxd5 {[%emt 0:11:45]} Nxd5 {[%emt 0:00:50]} 23. Be4 {[%emt 0:00:29]} (23. g3 $11 Bxd2 24. Qxd2) 23... Bxd2 $17 {[%emt 0:04:47]} 24. Qxd2 {[%emt 0:00:11]} Qf4 {[%emt 0:00:09]} 25. Qc2 {[%emt 0:04:16]} Nf6 {[%emt 0:01:37]} 26. Qc5+ {[%emt 0:06:31]} Kg7 {[%emt 0:00:28]} 27. Bf3 {[%emt 0:00:14]} Qd2 {[%emt 0:04:05][%csl LRb2,LRe1,LRf2]} 28. Rf1 {[%emt 0:05:28]} Rad8 {[%emt 0:02:21][%cal Of6e4]} 29. Qb6 {[%emt 0:02:06]} Rd7 $1 {[%emt 0:03:15]} (29... Qxd4 30. Qxb7 Rb8 31. Qxc6 $11) 30. Rad1 {[%emt 0:00:09]} Qf4 $36 {[%emt 0:00:06][%mdl 2048] Black has some pressure.} 31. Kg1 {[%emt 0:01:18]} h5 {[%emt 0:01:45]} 32. Rd3 {[%emt 0:00:40]} g5 {[%emt 0:01:08]} (32... Nh7 $17) 33. Rfd1 $2 {[%emt 0:01:05]} (33. Qc5 $15 g4 34. Bd1 (34. g3 Qh6 $15)) 33... g4 $1 $19 {[%emt 0:00:30]} 34. g3 {[%emt 0:00:25]} Qf5 {[%emt 0:00:07]} 35. hxg4 {[%emt 0:00:50]} hxg4 {[%emt 0:00:05]} 36. Bg2 {[%emt 0:00:33]} Re2 {[%emt 0:04:27]} 37. d5 {[%emt 0:00:49]} cxd5 {[%emt 0:00:29][%cal Od5d4] Black is more active.} 38. Qd4 {[%emt 0:00:33]} Rc7 {[%emt 0:02:12]} 39. Bf1 $2 {[%emt 0:00:30]} (39. R3d2 $17 Re5 40. Qb4) 39... Re4 {[%emt 0:06:22]} 40. Qb6 {[%emt 0:00:11]} Rc2 {[%emt 0:01:05]} 41. R3d2 {[%emt 0:30:50] [#]} Re1 $2 {[%emt 0:21:50]} 42. Rxe1 $17 {[%emt 0:00:00]} Rxd2 {[%emt 0:00:30]} 43. Bg2 {[%emt 0:00:00][%cal Oe1f1]} d4 {[%emt 0:07:59]} 44. Rf1 {[%emt 0:00:00]} Qb5 {[%emt 0:02:10]} 45. Qxb5 {[%emt 0:00:00]} axb5 {[%emt 0:00:04]} 46. Bxb7 {[%emt 0:00:00]} Rxb2 {[%emt 0:03:59][%cal Od4d3][%mdl 4096] Endgame KRB-KRN. Black is a pawn up.} 47. Rd1 {[%emt 0:00:00]} Rxa2 {[%emt 0:00:21]} 48. Rxd4 {[%emt 0:00:00]} Ra4 {[%emt 0:00:03] Prevents Rb4} 49. Rd1 {[%emt 0:00:00]} Rb4 {[%emt 0:01:15] Prevents Rb1} 50. Bc8 {[%emt 0:00:00]} Kg6 {[%emt 0:00:35]} (50... Ne4 $17) 51. Re1 {[%emt 0:00:00]} (51. Rd6 $11) 51... Rd4 {[%emt 0:00:25]} 52. Re5 {[%emt 0:00:00]} b4 {[%emt 0:00:44]} (52... Rd5 $17 53. Re7 b4) 53. Rb5 {[%emt 0:00:48]} (53. Bb7 $11) 53... Ne8 {[%emt 0:00:10]} 54. Rb6+ {[%emt 0:00:30]} f6 {[%emt 0:00:42]} 55. Kg2 {[%emt 0:01:46]} Nd6 {[%emt 0:00:54]} 56. Be6 {[%emt 0:02:38]} f5 {[%emt 0:00:12]} 57. Kf1 {[%emt 0:01:54]} Kg7 {[%emt 0:00:29]} (57... Kg5 $17) 58. Rb8 {[%emt 0:00:54]} (58. Bb3 $15) 58... Kf6 {[%emt 0:00:09]} 59. Bg8 {[%emt 0:00:21]} Ne4 {[%emt 0:00:40]} 60. Rb6+ $2 {[%emt 0:00:35]} (60. Ke1 $17 {was the only chance.}) 60... Kg7 $1 $19 {[%emt 0:00:10]} 61. Be6 {[%emt 0:00:30]} Nd6 $2 {[%emt 0:00:38]} ({Black should try} 61... Rd6 $1 $19 {[%cal Rd6b6]} 62. Rb7+ Kf6 63. Bxf5 Kxf5 64. Rb5+ Nc5 65. Rxc5+ Ke4) 62. Rb8 $15 {[%emt 0:00:32]} Kf6 {[%emt 0:01:18]} 63. Bg8 $1 {[%emt 0:00:27]} Ne4 {[%emt 0:00:43]} 64. Rb6+ {[%emt 0:00:21]} Ke7 {[%emt 0:00:16]} 65. Rb5 {[%emt 0:00:45]} Nd6 {[%emt 0:00:29]} 66. Rb8 {[%emt 0:00:29]} Kd7 {[%emt 0:00:27]} 67. Ke2 {[%emt 0:00:31]} Kc6 {[%emt 0:00:29]} 68. Ke3 {[%emt 0:00:27]} (68. Bb3 $15) 68... Kc5 $17 {[%emt 0:00:22]} 69. f3 $2 {[%emt 0:00:31] [#] Prevents Re4+.} (69. Bb3 $17) 69... f4+ $1 $19 {[%emt 0:00:48][%mdl 512]} 70. gxf4 {[%emt 0:00:31] [#]} Nf5+ {[%emt 0:00:19]} (70... g3 $1 $19 71. Ra8 Nf5+ 72. Ke2 g2 (72... Rxf4 73. Rc8+ Kb6 74. Bh7 $17)) 71. Ke2 $17 {[%emt 0:00:27]} g3 {[%emt 0:00:10][%cal Od4d1] and ...Rd1! should not be overlooked} (71... Rxf4 72. fxg4 Ne7 73. Bb3 $11) 72. Be6 $2 {[%emt 0:00:33]} (72. Rc8+ $17 {keeps fighting.} Kb6 73. Rb8+ Ka7 74. Rc8) 72... Ne7 {[%emt 0:01:14]} ({Less strong is} 72... Rxf4 73. Rc8+ Kd4 74. Rd8+ Ke5 75. Bxf5 Rxf5 (75... Kxf5 76. Rg8 $11) 76. Ke3 $15) 73. Rb7 $2 {[%emt 0:00:30]} (73. Ra8) 73... g2 $19 {[%emt 0:00:06]} 74. Kf2 {[%emt 0:00:05]} Rd2+ {[%emt 0:00:03]} 75. Kg1 {[%emt 0:00:10] [#]} Ng6 $1 {[%emt 0:00:26][%cal Og6h4] ( -> ...Nh4!)} 76. Rg7 {[%emt 0:01:16]} Nxf4 {[%emt 0:00:27]} 77. Bg4 {[%emt 0:00:31]} Rd1+ {[%emt 0:00:05] Weighted Error Value: White=0.32/Black=0.15 (very precise)   Loses game:     	White=5     	---        Missed win:     	---       	Black=2      Mistake:       	White=7     	Black=5      Inaccurate:     	White=3     	Black=4      OK:         	White=27    	Black=26     Best:        	White=6     	Black=7      Strong:       	White=1     	Black=3      Brilliant:      	---       	Black=1} 0-1

[Event "EICC 2025"]
[Site "Eforie-Nord"]
[Date "2025.03.15"]
[Round "1.7"]
[White "Jobava, Baadur"]
[Black "Iliaguev, Daniel"]
[Result "1-0"]
[Annotator "TA"]
[ECO "A50"]
[WhiteElo "2578"]
[BlackElo "2247"]
[PlyCount "81"]
[EventDate "2025.03.14"]
[EventType "swiss"]
[EventCountry "ROU"]
[SourceTitle "playchess.com"]
[Source "ChessBase"]
[SourceQuality "1"]
[TimeControl "40/5400+30:1800+30"]

{[%evp 9,81,41,56,51,46,43,44,48,66,57,70,71,82,75,72,66,61,64,62,66,66,63,66,69,58,45,75,74,114,104,143,139,137,135,127,133,176,160,166,164,167,169,200,200,209,193,258,254,312,314,322,321,339,330,334,341,421,420,415,412,687,680,662,619,941,941,1020,1020,1020,601,29974,29966,1839,1066]} 1. d4 {[%emt 0:00:11]} Nf6 {[%emt 0:00:14]} 2. c4 {[%emt 0:00:13]} b6 {[%emt 0:00:15]} 3. Nc3 {[%emt 0:01:07]} Bb7 {[%emt 0:00:20]} 4. Nf3 {[%emt 0:06:09]} g6 {[%emt 0:00:38]} 5. d5 {[%emt 0:01:04]} Bg7 {[%emt 0:09:16]} 6. e4 {[%emt 0:00:09] A50: Queen's Fianchetto Defence (1 d4 Nf6 2 c4 b6).} d6 {[%emt 0:05:22]} 7. Bd3 {[%emt 0:02:46]} O-O {[%emt 0:02:43]} 8. O-O {[%emt 0:01:26] White is slightly better.} e5 {[%emt 0:12:14]} 9. Bg5 {[%emt 0:06:29]} h6 {[%emt 0:04:04]} 10. Be3 $146 {[%emt 0:04:50] White is more active.} (10. Bd2 Nbd7 11. b4 a5 12. a3 Nh5 13. g3 Bc8 14. Rb1 Nb8 15. Ne1 Bh3 16. Ng2 {1-0 Kazhgaleyev,M (2574)-Suleymenov,A (2157) KAZ-ch Pavlodar 2015 (1)}) 10... Nh5 {[%emt 0:08:21]} 11. Re1 {[%emt 0:09:39]} Nf4 {[%emt 0:04:29]} 12. Bf1 {[%emt 0:00:40]} (12. Bc2 $5) 12... Bc8 {[%emt 0:00:27]} 13. b4 {[%emt 0:02:57]} a5 {[%emt 0:00:44]} 14. bxa5 {[%emt 0:00:31]} Rxa5 {[%emt 0:02:52]} 15. Nd2 {[%emt 0:00:08][%cal Bf3d2,Bd2b3,Bb3a5,Ba5b7][%mdl 32]} Ra8 {[%emt 0:06:40]} 16. a4 {[%emt 0:00:09]} Nd7 {[%emt 0:12:53]} 17. Nb3 {[%emt 0:00:25]} Nf6 {[%emt 0:03:08]} 18. f3 {[%emt 0:03:44] Inhibits Ng4. White leaves nothing to chance now.} Bd7 {[%emt 0:01:55]} 19. Qd2 {[%emt 0:02:40]} Kh7 {[%emt 0:02:22]} 20. a5 $1 {[%emt 0:01:08]} bxa5 {[%emt 0:01:12]} 21. Nxa5 {[%emt 0:00:09]} g5 {[%emt 0:04:35]} 22. c5 {[%emt 0:01:03]} dxc5 {[%emt 0:01:14][%csl Oc5,Oc7] Black has weak pawns} 23. Nb7 {[%emt 0:00:23]} Qc8 {[%emt 0:01:37]} 24. Rxa8 {[%emt 0:01:30]} Qxa8 {[%emt 0:00:08]} 25. Nxc5 {[%emt 0:00:05]} Rb8 {[%emt 0:04:09]} 26. Nxd7 {[%emt 0:07:45]} Nxd7 {[%emt 0:00:02]} 27. Nb5 {[%emt 0:04:17][%cal Od2c3]} Bf8 {[%emt 0:05:50]} (27... c6 $142) 28. Qc3 $18 {[%emt 0:01:44][%cal Oe1a1] [#] aiming for Ra1!.} (28. Nxc7 $6 Qa3 $16) 28... Rb7 {[%emt 0:04:45]} 29. Ra1 {[%emt 0:02:09]} (29. Nxc7 Qa2 $16) 29... Qb8 {[%emt 0:00:06]} 30. Qc6 {[%emt 0:00:31]} Nb6 {[%emt 0:00:43]} 31. Rc1 {[%emt 0:08:44][%cal Rb5c7]} Nc8 {[%emt 0:01:22]} 32. Qe8 {[%emt 0:00:36]} (32. Nxc7 Nd6 33. Na6 Qd8 $18) 32... Kg8 {[%emt 0:00:38]} 33. d6 {[%emt 0:00:21]} (33. Qxe5 Rxb5 34. Bxb5 (34. Bxf4 Qb6+ 35. Kh1 Rb1 $17) 34... Qxb5 35. Bxf4 (35. Qxc7 Ne2+ 36. Kf2 Nxc1 $19) (35. Rxc7 {gets mated.} Qe2) 35... Bd6 $17) 33... Nxd6 {[%emt 0:00:55]} 34. Nxd6 {[%emt 0:00:09]} (34. Qxe5 $2 {too greedy.} Nxb5 35. Bxf4 Bd6 $19 (35... gxf4 $2 36. Qxf4 Rb6 37. Bxb5 $19)) 34... cxd6 {[%emt 0:00:35]} (34... Qxe8 $142 35. Nxe8 Ne6) 35. Rc8 {[%emt 0:00:07]} Qxc8 {[%emt 0:00:09]} 36. Qxc8 {[%emt 0:00:08]} Rb3 {[%emt 0:00:12]} 37. Bxf4 {[%emt 0:01:20]} gxf4 {[%emt 0:00:38]} 38. Qg4+ {[%emt 0:03:25]} Bg7 {[%emt 0:00:45]} 39. Bc4 {[%emt 0:00:21]} Rb6 {[%emt 0:00:08]} 40. Qc8+ {[%emt 0:00:00]} Bf8 {[%emt 0:00:00] [#]} 41. Bxf7+ $1 {[%emt 0:02:16] Weighted Error Value: White=0.02 (flawless) /Black=0.54  Mistake:       	---       	Black=2      Inaccurate:     	---       	Black=4      OK:         	White=16    	Black=8      Best:        	White=3     	Black=1} 1-0

[Event "EICC 2025"]
[Site "Eforie-Nord"]
[Date "2025.03.15"]
[Round "1.7"]
[White "Domingo Nunez, Alejandro"]
[Black "Navara, David"]
[Result "0-1"]
[Annotator "TA"]
[ECO "A34"]
[WhiteElo "2337"]
[BlackElo "2663"]
[PlyCount "88"]
[EventDate "2025.03.14"]
[EventType "swiss"]
[EventCountry "ROU"]
[SourceTitle "playchess.com"]
[Source "ChessBase"]
[SourceQuality "1"]
[TimeControl "40/5400+30:1800+30"]

{[%evp 9,88,24,6,0,0,-3,-10,-1,-5,0,18,18,11,9,20,20,30,6,27,0,41,0,8,0,4,0,3,0,10,6,0,0,0,0,0,-5,0,0,-9,-69,-72,-67,-69,-72,-74,-95,-95,-115,-95,-112,-112,-130,-116,-171,-166,-198,-200,-183,-169,-232,-223,-247,-229,-249,-242,-242,-237,-550,-412,-435,-418,-596,-588,-763,-741,-794,-800,-1298,-1375,-1317,-1324]} 1. Nf3 {[%emt 0:00:16]} c5 {[%emt 0:00:07]} 2. c4 {[%emt 0:00:16]} Nc6 {[%emt 0:00:24]} 3. Nc3 {[%emt 0:00:22]} e5 {[%emt 0:01:53][%cal Be7e5,Be5e4][%mdl 32]} 4. e3 {[%emt 0:00:35]} Nf6 {[%emt 0:00:18]} 5. d4 {[%emt 0:00:06]} e4 {[%emt 0:01:05]} 6. d5 {[%emt 0:00:10] A34: Symmetrical English: 2 Nc3, lines with ...d5.} exf3 {[%emt 0:00:45]} 7. dxc6 {[%emt 0:00:07]} dxc6 {[%emt 0:01:17] With the idea ...Bg4.} 8. Qxd8+ {[%emt 0:00:19] The position is equal.} Kxd8 {[%emt 0:00:04]} 9. gxf3 {[%emt 0:00:07]} g6 {[%emt 0:01:36]} 10. b3 {[%emt 0:01:14]} Bg7 {[%emt 0:00:16][%cal Of6e4]} 11. Bb2 {[%emt 0:00:07]} Ke7 {[%emt 0:01:58]} 12. O-O-O {[%emt 0:00:09]} Be6 {[%emt 0:01:38]} 13. Be2 {[%emt 0:01:45]} Bh3 $146 {[%emt 0:04:22]} (13... Rhd8 14. f4 Rxd1+ 15. Rxd1 b6 16. Bf3 Rc8 17. Rg1 Ne8 18. Ne4 Bxb2+ 19. Kxb2 Bf5 20. Ng3 Be6 21. Rd1 f5 {0-1 Predke,A (2673)-Karjakin,S (2757) Moscow Smyslov Region Group Cup blitz 2021 (7)}) 14. Bf1 {[%emt 0:20:36]} Be6 {[%emt 0:02:13]} 15. Be2 {[%emt 0:01:19]} b6 {[%emt 0:03:14]} 16. Rd2 {[%emt 0:05:04]} Rhd8 {[%emt 0:00:58]} 17. Rxd8 {[%emt 0:00:40]} Rxd8 {[%emt 0:00:10]} 18. Rd1 {[%emt 0:00:06]} Rg8 {[%emt 0:08:08]} 19. Bf1 {[%emt 0:00:27]} g5 {[%emt 0:01:18]} 20. Bd3 {[%emt 0:00:55]} Nd7 {[%emt 0:09:19]} 21. Rg1 {[%emt 0:02:20]} f5 {[%emt 0:05:22]} 22. Nd1 {[%emt 0:03:43]} Ne5 {[%emt 0:03:33]} 23. Be2 {[%emt 0:00:11]} Bf6 {[%emt 0:03:38]} 24. f4 {[%emt 0:05:04]} (24. h4 $11 gxh4 25. Rh1) 24... gxf4 $1 $15 {[%emt 0:01:06]} 25. Rxg8 {[%emt 0:00:04]} Bxg8 {[%emt 0:00:10]} 26. exf4 {[%emt 0:00:03] White is on the road to losing.} Ng6 {[%emt 0:00:29]} 27. Bxf6+ {[%emt 0:00:09]} Kxf6 $17 {[%emt 0:00:07][%mdl 4096] Endgame KBN-KBN} 28. Bf3 {[%emt 0:00:03]} Nxf4 {[%emt 0:00:16]} 29. Bxc6 {[%emt 0:00:07]} Nd3+ $1 {[%emt 0:02:06]} 30. Kb1 {[%emt 0:00:05]} Bf7 {[%emt 0:13:23] Black is more active.} 31. Bg2 {[%emt 0:27:50]} (31. a3 $17) 31... Ke5 $19 {[%emt 0:03:39]} 32. Bf1 {[%emt 0:02:20]} Kd4 {[%emt 0:01:57]} 33. Kc2 {[%emt 0:11:04]} Ne1+ {[%emt 0:01:43]} 34. Kb2 {[%emt 0:00:05] [#]} (34. Kc1 $142) 34... f4 $1 {[%emt 0:00:57]} 35. Be2 {[%emt 0:02:38] [#]} Nd3+ {[%emt 0:03:23]} 36. Kc2 {[%emt 0:02:16]} Nb4+ {[%emt 0:00:12]} 37. Kb2 {[%emt 0:00:38]} Bg6 {[%emt 0:01:30]} 38. Bg4 $2 {[%emt 0:06:36]} (38. Kc1) 38... h5 {[%emt 0:01:56]} 39. Be2 {[%emt 0:02:04]} Nd3+ {[%emt 0:03:22]} 40. Ka3 {[%emt 0:00:32]} (40. Kc2 {keeps fighting.} Nxf2+ 41. Kd2 Ne4+ 42. Ke1) 40... h4 {[%emt 0:00:45] Black is clearly winning.} 41. Bg4 {[%emt 0:31:23]} Ne5 {[%emt 0:31:01]} 42. Be2 {[%emt 0:00:30]} Bc2 {[%emt 0:00:39] White must now prevent ...f3.} 43. Nb2 {[%emt 0:00:00]} f3 {[%emt 0:00:00]} 44. Bd1 {[%emt 0:00:00]} Kc3 {[%emt 0:00:00] Weighted Error Value: White=0.43/Black=0.06 (flawless)   Mistake:       	White=5     	---        Inaccurate:     	White=1     	---        OK:         	White=12    	Black=15     Best:        	White=1     	Black=1      Strong:       	---       	Black=2} 0-1